[Event "Late-Titled-Tuesday-Blitz-September-12-2023"]
[Site "Chess.com"]
[Date "2023.09.12"]
[Round "7"]
[White "Chaos_Magic"]
[Black "Miguelitro69"]
[Result "1-0"]
[WhiteElo "2409"]
[BlackElo "2283"]
[TimeControl "180+1"]
[EndTime "15:13:47 PDT"]
[Termination "Chaos_Magic won by resignation"]

1. d4 {[%clk 0:03:00.9]} 1... d5 {[%clk 0:02:53.9]} 2. Nf3 {[%clk 0:02:59.5]}
2... Nf6 {[%clk 0:02:53.6]} 3. c4 {[%clk 0:02:59.9]} 3... e6 {[%clk 0:02:53.8]}
4. Nc3 {[%clk 0:02:59]} 4... c6 {[%clk 0:02:53.4]} 5. e3 {[%clk 0:02:56.1]} 5...
Nbd7 {[%clk 0:02:52.5]} 6. Qc2 {[%clk 0:02:56.4]} 6... Bd6 {[%clk 0:02:52.4]} 7.
Bd3 {[%clk 0:02:56.6]} 7... O-O {[%clk 0:02:51.9]} 8. Bd2 {[%clk 0:02:56.1]}
8... Re8 {[%clk 0:02:46.9]} 9. O-O {[%clk 0:02:53.6]} 9... e5 {[%clk 0:02:34.8]}
10. cxd5 {[%clk 0:02:50.4]} 10... Nxd5 {[%clk 0:02:28.3]} 11. Bxh7+ {[%clk
0:02:45.3]} 11... Kh8 {[%clk 0:02:25.9]} 12. Be4 {[%clk 0:02:40]} 12... exd4
{[%clk 0:02:21.1]} 13. Nxd5 {[%clk 0:02:37.2]} 13... cxd5 {[%clk 0:02:14.5]} 14.
Bxd5 {[%clk 0:02:36.9]} 14... Qf6 {[%clk 0:02:02.2]} 15. exd4 {[%clk 0:02:30.8]}
15... Nb6 {[%clk 0:02:02.1]} 16. Bg5 {[%clk 0:02:24.1]} 16... Bf5 {[%clk
0:01:38.8]} 17. Qd2 {[%clk 0:02:10.1]} 17... Qg6 {[%clk 0:01:31.3]} 18. Bxb7
{[%clk 0:01:51.6]} 18... Rab8 {[%clk 0:01:25.3]} 19. Ba6 {[%clk 0:01:40.4]}
19... Be4 {[%clk 0:01:20.6]} 20. Nh4 {[%clk 0:01:18.5]} 20... Qh5 {[%clk
0:01:17.8]} 21. g3 {[%clk 0:01:17.3]} 21... Nd5 {[%clk 0:01:09]} 22. f3 {[%clk
0:01:09.7]} 22... Bh7 {[%clk 0:00:57.4]} 23. Bc4 {[%clk 0:01:01.3]} 23... f6
{[%clk 0:00:52.2]} 24. Bxd5 {[%clk 0:00:57]} 24... fxg5 {[%clk 0:00:51.8]} 25.
Ng2 {[%clk 0:00:52.5]} 25... g4 {[%clk 0:00:41.7]} 26. Bc6 {[%clk 0:00:50.4]}
26... Red8 {[%clk 0:00:37.9]} 27. Nf4 {[%clk 0:00:42.4]} 27... Qh6 {[%clk
0:00:32.6]} 28. Be4 {[%clk 0:00:29.9]} 28... gxf3 {[%clk 0:00:25.2]} 29. Bxh7
{[%clk 0:00:27.3]} 29... Qxh7 {[%clk 0:00:23.7]} 30. Rxf3 {[%clk 0:00:26.5]}
30... Be5 {[%clk 0:00:23.5]} 31. Ne6 {[%clk 0:00:20.8]} 31... Rd6 {[%clk
0:00:20.5]} 32. Nf8 {[%clk 0:00:18.4]} 32... Qe4 {[%clk 0:00:20]} 33. Qg2 {[%clk
0:00:12.2]} 33... Bxd4+ {[%clk 0:00:20]} 34. Kh1 {[%clk 0:00:12.5]} 34... Rf6
{[%clk 0:00:18.2]} 35. Rxf6 {[%clk 0:00:12.3]} 35... Qxg2+ {[%clk 0:00:18.3]}
36. Kxg2 {[%clk 0:00:13.1]} 36... gxf6 {[%clk 0:00:18.5]} 37. Ng6+ {[%clk
0:00:12.8]} 37... Kg7 {[%clk 0:00:18.8]} 38. Nf4 {[%clk 0:00:13.1]} 38... Rxb2+
{[%clk 0:00:19.4]} 39. Kf3 {[%clk 0:00:13.4]} 39... Rxh2 {[%clk 0:00:19.4]} 40.
Ne6+ {[%clk 0:00:13.8]} 40... Kf7 {[%clk 0:00:18.6]} 41. Nxd4 {[%clk 0:00:14.1]}
41... Rd2 {[%clk 0:00:19.4]} 42. Ne2 {[%clk 0:00:14.1]} 42... Rd3+ {[%clk
0:00:19.7]} 43. Kf2 {[%clk 0:00:14.1]} 43... Ke6 {[%clk 0:00:19.8]} 44. a4
{[%clk 0:00:14.3]} 1-0

[Event "Late-Titled-Tuesday-Blitz-September-12-2023"]
[Site "Chess.com"]
[Date "2023.09.12"]
[Round "7"]
[White "vi_pranav"]
[Black "angryspacevoid"]
[Result "1-0"]
[WhiteElo "2992"]
[BlackElo "2572"]
[TimeControl "180+1"]
[EndTime "15:13:48 PDT"]
[Termination "vi_pranav won by resignation"]

1. e4 {[%clk 0:03:00.9]} 1... e5 {[%clk 0:02:58.5]} 2. Nf3 {[%clk 0:03:00.8]}
2... Nc6 {[%clk 0:02:47.2]} 3. Bb5 {[%clk 0:03:00.4]} 3... Nf6 {[%clk
0:02:47.3]} 4. d3 {[%clk 0:02:58.9]} 4... Bc5 {[%clk 0:02:46.1]} 5. c3 {[%clk
0:02:58.5]} 5... Qe7 {[%clk 0:02:38.1]} 6. O-O {[%clk 0:02:57]} 6... O-O {[%clk
0:02:36.9]} 7. d4 {[%clk 0:02:54.6]} 7... Bb6 {[%clk 0:02:33.7]} 8. Re1 {[%clk
0:02:51.2]} 8... d6 {[%clk 0:02:16.4]} 9. h3 {[%clk 0:02:50.6]} 9... Bd7 {[%clk
0:02:12.3]} 10. Na3 {[%clk 0:02:40.3]} 10... Rad8 {[%clk 0:02:09.2]} 11. Bg5
{[%clk 0:02:28.9]} 11... h6 {[%clk 0:02:07.9]} 12. Bh4 {[%clk 0:02:21.5]} 12...
g5 {[%clk 0:01:53.9]} 13. Nxg5 {[%clk 0:02:13.5]} 13... hxg5 {[%clk 0:01:54.1]}
14. Bxg5 {[%clk 0:02:14.4]} 14... exd4 {[%clk 0:01:38]} 15. Bxc6 {[%clk
0:02:13.9]} 15... bxc6 {[%clk 0:01:30.9]} 16. cxd4 {[%clk 0:02:13.3]} 16... Qe6
{[%clk 0:01:25.4]} 17. e5 {[%clk 0:01:54.6]} 17... Nd5 {[%clk 0:00:59.2]} 18.
Bxd8 {[%clk 0:01:37.6]} 18... Rxd8 {[%clk 0:01:00.1]} 19. exd6 {[%clk
0:01:23.1]} 19... Qg6 {[%clk 0:00:58.7]} 20. dxc7 {[%clk 0:00:59.8]} 20... Bxc7
{[%clk 0:00:57.1]} 21. Qf3 {[%clk 0:00:57.5]} 21... Kh8 {[%clk 0:00:35.4]} 22.
Nc4 {[%clk 0:00:52.9]} 22... f6 {[%clk 0:00:27.8]} 23. Re4 {[%clk 0:00:48.4]}
23... Rg8 {[%clk 0:00:17]} 24. Rh4+ {[%clk 0:00:39.1]} 24... Kg7 {[%clk
0:00:16.5]} 25. Re1 {[%clk 0:00:39.4]} 25... Kf8 {[%clk 0:00:13.2]} 26. g3
{[%clk 0:00:24.8]} 26... f5 {[%clk 0:00:08.4]} 27. Qa3+ {[%clk 0:00:18.9]} 27...
Kg7 {[%clk 0:00:06.6]} 28. Re7+ {[%clk 0:00:15]} 28... Nxe7 {[%clk 0:00:05.9]}
29. Qxe7+ {[%clk 0:00:15.6]} 29... Qf7 {[%clk 0:00:05.5]} 30. Rh7+ {[%clk
0:00:16.1]} 30... Kxh7 {[%clk 0:00:05.5]} 31. Qxf7+ {[%clk 0:00:17]} 31... Rg7
{[%clk 0:00:06.4]} 32. Qh5+ {[%clk 0:00:15.1]} 32... Kg8 {[%clk 0:00:06.9]} 33.
Ne5 {[%clk 0:00:15.4]} 33... Bxe5 {[%clk 0:00:03.8]} 34. dxe5 {[%clk 0:00:16.3]}
34... f4 {[%clk 0:00:04.3]} 35. e6 {[%clk 0:00:16.2]} 35... fxg3 {[%clk
0:00:04.1]} 36. exd7 {[%clk 0:00:15.7]} 36... gxf2+ {[%clk 0:00:05]} 37. Kxf2
{[%clk 0:00:16.2]} 1-0

[Event "Late-Titled-Tuesday-Blitz-September-12-2023"]
[Site "Chess.com"]
[Date "2023.09.12"]
[Round "7"]
[White "Nigerianprodigy"]
[Black "SEBAZZANO"]
[Result "1-0"]
[WhiteElo "2381"]
[BlackElo "2203"]
[TimeControl "180+1"]
[EndTime "15:13:48 PDT"]
[Termination "Nigerianprodigy won on time"]

1. e4 {[%clk 0:03:00]} 1... e6 {[%clk 0:02:57.9]} 2. d4 {[%clk 0:02:59.4]} 2...
d5 {[%clk 0:02:56.2]} 3. e5 {[%clk 0:02:58.5]} 3... c5 {[%clk 0:02:55.9]} 4. c3
{[%clk 0:02:58.6]} 4... Nc6 {[%clk 0:02:55.5]} 5. Nf3 {[%clk 0:02:58.6]} 5...
Qb6 {[%clk 0:02:54.3]} 6. a3 {[%clk 0:02:58.9]} 6... c4 {[%clk 0:02:53.9]} 7.
Be2 {[%clk 0:02:48]} 7... Bd7 {[%clk 0:02:51.5]} 8. O-O {[%clk 0:02:47.8]} 8...
Na5 {[%clk 0:02:51.3]} 9. Qc2 {[%clk 0:02:32.8]} 9... Ne7 {[%clk 0:02:27.8]} 10.
Bg5 {[%clk 0:02:29.3]} 10... Nc8 {[%clk 0:02:23.6]} 11. Nbd2 {[%clk 0:02:28]}
11... Qc7 {[%clk 0:02:22.2]} 12. h3 {[%clk 0:02:25.2]} 12... Nb6 {[%clk
0:02:21.7]} 13. Bd1 {[%clk 0:02:17]} 13... Ba4 {[%clk 0:02:12.5]} 14. Qc1 {[%clk
0:02:15.7]} 14... Bxd1 {[%clk 0:02:12.5]} 15. Qxd1 {[%clk 0:02:16.6]} 15... Be7
{[%clk 0:02:12.1]} 16. Bxe7 {[%clk 0:02:15.7]} 16... Qxe7 {[%clk 0:01:58.4]} 17.
Nh2 {[%clk 0:02:13.4]} 17... O-O {[%clk 0:01:40.2]} 18. f4 {[%clk 0:02:12.7]}
18... f5 {[%clk 0:01:23.1]} 19. exf6 {[%clk 0:02:10.9]} 19... Rxf6 {[%clk
0:01:20.5]} 20. Ng4 {[%clk 0:02:10.3]} 20... Rff8 {[%clk 0:01:13.7]} 21. Qe2
{[%clk 0:02:09.3]} 21... Rae8 {[%clk 0:01:02.5]} 22. g3 {[%clk 0:02:01.2]} 22...
Nb3 {[%clk 0:00:55.8]} 23. Nxb3 {[%clk 0:01:53]} 23... cxb3 {[%clk 0:00:56.7]}
24. Rae1 {[%clk 0:01:45.7]} 24... Nc4 {[%clk 0:00:21.9]} 25. Kg2 {[%clk
0:01:45.5]} 25... Qd6 {[%clk 0:00:17.4]} 26. Rf3 {[%clk 0:01:38.5]} 26... g6
{[%clk 0:00:14.5]} 27. Qd3 {[%clk 0:01:32.4]} 27... a5 {[%clk 0:00:13.2]} 28. h4
{[%clk 0:01:29.4]} 28... b5 {[%clk 0:00:12.7]} 29. Rh1 {[%clk 0:01:27.9]} 29...
b4 {[%clk 0:00:07]} 30. cxb4 {[%clk 0:01:25.5]} 30... axb4 {[%clk 0:00:07.9]}
31. h5 {[%clk 0:01:24]} 31... g5 {[%clk 0:00:06.5]} 32. fxg5 {[%clk 0:01:20.6]}
32... bxa3 {[%clk 0:00:06.3]} 33. Nf6+ {[%clk 0:01:16]} 33... Rxf6 {[%clk
0:00:06.1]} 34. gxf6 {[%clk 0:01:12.3]} 34... Rf8 {[%clk 0:00:05.2]} 35. f7+
{[%clk 0:01:11.4]} 35... Kh8 {[%clk 0:00:03.9]} 36. bxa3 {[%clk 0:01:09.2]}
36... b2 {[%clk 0:00:03.5]} 37. h6 {[%clk 0:01:02.5]} 37... Qe7 {[%clk
0:00:02.5]} 38. Qb3 {[%clk 0:00:59.7]} 38... Qg5 {[%clk 0:00:01.7]} 39. Qb4
{[%clk 0:00:56.3]} 39... Qd2+ {[%clk 0:00:01.1]} 40. Qxd2 {[%clk 0:00:45.9]}
40... Nxd2 {[%clk 0:00:02]} 41. Rff1 {[%clk 0:00:40.8]} 41... b1=Q {[%clk
0:00:01.6]} 42. Rxb1 {[%clk 0:00:40.6]} 42... Nxb1 {[%clk 0:00:02.5]} 43. Rxb1
{[%clk 0:00:40.8]} 1-0

[Event "Late-Titled-Tuesday-Blitz-September-12-2023"]
[Site "Chess.com"]
[Date "2023.09.12"]
[Round "7"]
[White "oskariot"]
[Black "Chessdreamer2020"]
[Result "1-0"]
[WhiteElo "2694"]
[BlackElo "2520"]
[TimeControl "180+1"]
[EndTime "15:13:49 PDT"]
[Termination "oskariot won on time"]

1. e4 {[%clk 0:02:55.9]} 1... d6 {[%clk 0:02:59.9]} 2. d4 {[%clk 0:02:53]} 2...
Nf6 {[%clk 0:02:57.8]} 3. f3 {[%clk 0:02:53.3]} 3... d5 {[%clk 0:02:57.1]} 4. e5
{[%clk 0:02:53]} 4... Nfd7 {[%clk 0:02:57.6]} 5. f4 {[%clk 0:02:53.2]} 5... c5
{[%clk 0:02:57.7]} 6. c3 {[%clk 0:02:51.3]} 6... Nc6 {[%clk 0:02:58]} 7. a3
{[%clk 0:02:43.7]} 7... cxd4 {[%clk 0:02:56.9]} 8. cxd4 {[%clk 0:02:43.9]} 8...
Nb6 {[%clk 0:02:57.7]} 9. Nc3 {[%clk 0:02:40.6]} 9... Bf5 {[%clk 0:02:57.4]} 10.
g4 {[%clk 0:02:40.4]} 10... Be4 {[%clk 0:02:56.5]} 11. Nxe4 {[%clk 0:02:40.2]}
11... dxe4 {[%clk 0:02:56.4]} 12. Ne2 {[%clk 0:02:37.2]} 12... Qd7 {[%clk
0:02:18.5]} 13. Bg2 {[%clk 0:02:14.6]} 13... Qxg4 {[%clk 0:02:17.3]} 14. Bxe4
{[%clk 0:02:15.1]} 14... Rd8 {[%clk 0:02:03.1]} 15. d5 {[%clk 0:01:51.2]} 15...
Nxe5 {[%clk 0:01:56.9]} 16. Qb3 {[%clk 0:01:31.3]} 16... Nec4 {[%clk 0:01:32.3]}
17. a4 {[%clk 0:01:06.7]} 17... Nd6 {[%clk 0:01:20.4]} 18. Bf3 {[%clk
0:01:07.1]} 18... Qd7 {[%clk 0:01:01.3]} 19. Be3 {[%clk 0:00:58.8]} 19... g6
{[%clk 0:00:50.5]} 20. Bd4 {[%clk 0:00:59]} 20... Rg8 {[%clk 0:00:49.6]} 21. O-O
{[%clk 0:00:49.1]} 21... Bg7 {[%clk 0:00:49]} 22. Bxg7 {[%clk 0:00:44.8]} 22...
Rxg7 {[%clk 0:00:49.9]} 23. a5 {[%clk 0:00:45.6]} 23... Nbc8 {[%clk 0:00:39.5]}
24. Ng3 {[%clk 0:00:39.2]} 24... h5 {[%clk 0:00:28.6]} 25. Qc3 {[%clk
0:00:30.5]} 25... Rh7 {[%clk 0:00:28.2]} 26. Kh1 {[%clk 0:00:26.4]} 26... h4
{[%clk 0:00:28.1]} 27. Ne2 {[%clk 0:00:27]} 27... h3 {[%clk 0:00:27.8]} 28. Ng3
{[%clk 0:00:26.1]} 28... Rh4 {[%clk 0:00:26.9]} 29. Qg7 {[%clk 0:00:24.7]} 29...
e6 {[%clk 0:00:06.5]} 30. Rae1 {[%clk 0:00:23.7]} 30... Ne7 {[%clk 0:00:03.2]}
31. dxe6 {[%clk 0:00:20.5]} 31... fxe6 {[%clk 0:00:04.1]} 32. f5 {[%clk
0:00:09.8]} 32... Ndxf5 {[%clk 0:00:02.5]} 33. Nxf5 {[%clk 0:00:10.1]} 1-0

[Event "Late-Titled-Tuesday-Blitz-September-12-2023"]
[Site "Chess.com"]
[Date "2023.09.12"]
[Round "7"]
[White "ChEsper99"]
[Black "ARTHURMOTIVATOR"]
[Result "0-1"]
[WhiteElo "2237"]
[BlackElo "2378"]
[TimeControl "180+1"]
[EndTime "15:13:51 PDT"]
[Termination "ARTHURMOTIVATOR won on time"]

1. e4 {[%clk 0:02:54.3]} 1... e5 {[%clk 0:02:58.9]} 2. Nf3 {[%clk 0:02:54.2]}
2... Nc6 {[%clk 0:02:54.9]} 3. Bc4 {[%clk 0:02:54.7]} 3... Nf6 {[%clk
0:02:55.2]} 4. d3 {[%clk 0:02:54.8]} 4... Bc5 {[%clk 0:02:54.7]} 5. O-O {[%clk
0:02:53.9]} 5... a6 {[%clk 0:02:55.2]} 6. a4 {[%clk 0:02:42.6]} 6... Ba7 {[%clk
0:02:53.2]} 7. Re1 {[%clk 0:02:35.3]} 7... d6 {[%clk 0:02:39.9]} 8. c3 {[%clk
0:02:19.1]} 8... h6 {[%clk 0:02:31.7]} 9. Be3 {[%clk 0:02:09.1]} 9... Bxe3
{[%clk 0:02:22.9]} 10. Rxe3 {[%clk 0:02:10]} 10... O-O {[%clk 0:02:17.1]} 11. d4
{[%clk 0:01:51.9]} 11... Nxe4 {[%clk 0:01:50.5]} 12. Rxe4 {[%clk 0:01:32.3]}
12... d5 {[%clk 0:01:47.2]} 13. Re1 {[%clk 0:01:27.7]} 13... dxc4 {[%clk
0:01:43.5]} 14. Nxe5 {[%clk 0:01:27.8]} 14... Nxe5 {[%clk 0:01:37.9]} 15. Rxe5
{[%clk 0:01:26.1]} 15... f6 {[%clk 0:01:34]} 16. Re1 {[%clk 0:01:17.4]} 16...
Bf5 {[%clk 0:01:33.3]} 17. Nd2 {[%clk 0:01:06.8]} 17... b5 {[%clk 0:01:21]} 18.
Qf3 {[%clk 0:00:48.2]} 18... Bd3 {[%clk 0:01:15.7]} 19. Qc6 {[%clk 0:00:40.3]}
19... Rb8 {[%clk 0:00:36.2]} 20. axb5 {[%clk 0:00:25.9]} 20... axb5 {[%clk
0:00:31.8]} 21. Ra7 {[%clk 0:00:23.7]} 21... Rf7 {[%clk 0:00:27.4]} 22. Ne4
{[%clk 0:00:11.8]} 22... Kh7 {[%clk 0:00:21.2]} 23. Nc5 {[%clk 0:00:11.5]} 23...
Rb6 {[%clk 0:00:17.9]} 24. Qe8 {[%clk 0:00:10.2]} 24... Qxe8 {[%clk 0:00:17.5]}
25. Rxe8 {[%clk 0:00:11.1]} 25... b4 {[%clk 0:00:17.3]} 26. h4 {[%clk
0:00:07.7]} 26... bxc3 {[%clk 0:00:16.7]} 27. bxc3 {[%clk 0:00:08.6]} 27... Kg6
{[%clk 0:00:13.8]} 28. g4 {[%clk 0:00:08.2]} 28... h5 {[%clk 0:00:13.2]} 29.
gxh5+ {[%clk 0:00:07.7]} 29... Kxh5 {[%clk 0:00:14.1]} 30. Rh8+ {[%clk
0:00:07.4]} 30... Kg4 {[%clk 0:00:14.2]} 31. Na6 {[%clk 0:00:03.4]} 31... Kf3
{[%clk 0:00:12.4]} 32. Rxc7 {[%clk 0:00:02.2]} 32... Rb1+ {[%clk 0:00:10.6]} 33.
Kh2 {[%clk 0:00:02.1]} 33... Rxc7 {[%clk 0:00:10.1]} 34. Nxc7 {[%clk 0:00:02.1]}
34... Kxf2 {[%clk 0:00:10.4]} 35. Kh3 {[%clk 0:00:01.6]} 35... Bf5+ {[%clk
0:00:09.8]} 36. Kh2 {[%clk 0:00:01.8]} 36... Be4 {[%clk 0:00:08.6]} 0-1

[Event "Late-Titled-Tuesday-Blitz-September-12-2023"]
[Site "Chess.com"]
[Date "2023.09.12"]
[Round "7"]
[White "AlexNovitz"]
[Black "tactic"]
[Result "0-1"]
[WhiteElo "2166"]
[BlackElo "2599"]
[TimeControl "180+1"]
[EndTime "15:13:51 PDT"]
[Termination "tactic won on time"]

1. e4 {[%clk 0:03:00.9]} 1... c5 {[%clk 0:02:52.9]} 2. Nf3 {[%clk 0:03:00.5]}
2... Nc6 {[%clk 0:02:53.4]} 3. d4 {[%clk 0:03:00.8]} 3... cxd4 {[%clk
0:02:54.3]} 4. Nxd4 {[%clk 0:03:01.2]} 4... Nf6 {[%clk 0:02:55]} 5. Nc3 {[%clk
0:03:00.8]} 5... e5 {[%clk 0:02:55.4]} 6. Ndb5 {[%clk 0:03:00.6]} 6... d6 {[%clk
0:02:56.2]} 7. Bg5 {[%clk 0:02:59.8]} 7... a6 {[%clk 0:02:56.9]} 8. Na3 {[%clk
0:02:59.5]} 8... b5 {[%clk 0:02:57.6]} 9. Nd5 {[%clk 0:02:59.4]} 9... Be7 {[%clk
0:02:58.4]} 10. Bxf6 {[%clk 0:02:59.8]} 10... Bxf6 {[%clk 0:02:59]} 11. c4
{[%clk 0:03:00.3]} 11... b4 {[%clk 0:02:58.9]} 12. Nc2 {[%clk 0:03:00.8]} 12...
O-O {[%clk 0:02:58.9]} 13. g3 {[%clk 0:03:00.4]} 13... a5 {[%clk 0:02:53.2]} 14.
b3 {[%clk 0:02:58.4]} 14... Be6 {[%clk 0:02:52.3]} 15. Bg2 {[%clk 0:02:55]}
15... g6 {[%clk 0:02:42.5]} 16. O-O {[%clk 0:02:54]} 16... Bg7 {[%clk
0:02:37.8]} 17. Nce3 {[%clk 0:02:53.8]} 17... Nd4 {[%clk 0:02:34.8]} 18. Qd3
{[%clk 0:02:53.8]} 18... f5 {[%clk 0:02:04]} 19. f4 {[%clk 0:02:44.8]} 19...
fxe4 {[%clk 0:01:50.3]} 20. Bxe4 {[%clk 0:02:42.8]} 20... Bh3 {[%clk 0:01:24.7]}
21. Rfe1 {[%clk 0:02:32.7]} 21... exf4 {[%clk 0:01:23]} 22. Nxf4 {[%clk
0:02:32.7]} 22... Bd7 {[%clk 0:01:15]} 23. Bxa8 {[%clk 0:02:22.5]} 23... Qxa8
{[%clk 0:01:15.9]} 24. Ned5 {[%clk 0:02:19.6]} 24... Kh8 {[%clk 0:01:07.5]} 25.
Rad1 {[%clk 0:02:00.7]} 25... Bg4 {[%clk 0:01:00.3]} 26. Re7 {[%clk 0:01:44.6]}
26... Nf3+ {[%clk 0:00:35.1]} 27. Kh1 {[%clk 0:01:39.4]} 27... Ne5 {[%clk
0:00:35.6]} 28. Qd2 {[%clk 0:01:21.4]} 28... Qc8 {[%clk 0:00:17]} 29. Re1 {[%clk
0:00:58]} 29... g5 {[%clk 0:00:17]} 30. Ng2 {[%clk 0:00:43.9]} 30... Nf3 {[%clk
0:00:16.1]} 31. Qe3 {[%clk 0:00:36.1]} 31... Nxe1 {[%clk 0:00:16.5]} 32. Nxe1
{[%clk 0:00:32.6]} 32... Bh3 {[%clk 0:00:14.9]} 33. Nf3 {[%clk 0:00:17.2]} 33...
g4 {[%clk 0:00:14.4]} 34. Qg5 {[%clk 0:00:08.5]} 34... Rg8 {[%clk 0:00:12.9]}
35. Nf6 {[%clk 0:00:03.8]} 35... Qc6 {[%clk 0:00:11.7]} 36. Nd5 {[%clk
0:00:01.2]} 36... gxf3 {[%clk 0:00:10]} 37. Qh4 {[%clk 0:00:01.5]} 37... Bg2+
{[%clk 0:00:10]} 38. Kg1 {[%clk 0:00:01.6]} 38... h6 {[%clk 0:00:10.9]} 0-1

[Event "Late-Titled-Tuesday-Blitz-September-12-2023"]
[Site "Chess.com"]
[Date "2023.09.12"]
[Round "7"]
[White "Bodhanas"]
[Black "emeli_chess"]
[Result "0-1"]
[WhiteElo "1880"]
[BlackElo "2377"]
[TimeControl "180+1"]
[EndTime "15:13:54 PDT"]
[Termination "emeli_chess won by resignation"]

1. d4 {[%clk 0:02:58.3]} 1... Nf6 {[%clk 0:02:59.7]} 2. Nf3 {[%clk 0:02:56.8]}
2... d5 {[%clk 0:02:59.5]} 3. Bf4 {[%clk 0:02:56.2]} 3... c5 {[%clk 0:02:58.8]}
4. c3 {[%clk 0:02:48.6]} 4... Nc6 {[%clk 0:02:53.2]} 5. e3 {[%clk 0:02:46.1]}
5... Qb6 {[%clk 0:02:46]} 6. Qc1 {[%clk 0:02:19.2]} 6... Bf5 {[%clk 0:02:42.2]}
7. Nbd2 {[%clk 0:02:07.6]} 7... e6 {[%clk 0:02:41.6]} 8. Be2 {[%clk 0:01:57.2]}
8... h6 {[%clk 0:02:33]} 9. Ne5 {[%clk 0:01:49.8]} 9... Nxe5 {[%clk 0:02:28.6]}
10. Bxe5 {[%clk 0:01:47.8]} 10... Nd7 {[%clk 0:02:22.6]} 11. Bg3 {[%clk
0:01:46.7]} 11... Bd6 {[%clk 0:02:19.6]} 12. Bxd6 {[%clk 0:01:42.3]} 12... Qxd6
{[%clk 0:02:19.3]} 13. Bf3 {[%clk 0:01:29.8]} 13... Nf6 {[%clk 0:02:09.9]} 14.
dxc5 {[%clk 0:01:23.9]} 14... Qxc5 {[%clk 0:02:09.6]} 15. O-O {[%clk 0:01:23.1]}
15... O-O {[%clk 0:02:09]} 16. Re1 {[%clk 0:01:19.8]} 16... Ne4 {[%clk
0:02:04.4]} 17. Nxe4 {[%clk 0:01:16.3]} 17... Bxe4 {[%clk 0:02:03.7]} 18. Bxe4
{[%clk 0:01:15.5]} 18... dxe4 {[%clk 0:02:03.7]} 19. Qc2 {[%clk 0:01:15]} 19...
f5 {[%clk 0:02:01.7]} 20. Rad1 {[%clk 0:01:12.8]} 20... Rfd8 {[%clk 0:02:01.9]}
21. Qb3 {[%clk 0:01:04.8]} 21... Qc6 {[%clk 0:01:55.8]} 22. h3 {[%clk 0:00:57]}
22... Rd3 {[%clk 0:01:49.8]} 23. Rxd3 {[%clk 0:00:44.5]} 23... exd3 {[%clk
0:01:49.7]} 24. Rd1 {[%clk 0:00:43.3]} 24... Rd8 {[%clk 0:01:49.8]} 25. c4
{[%clk 0:00:41.7]} 25... Qd7 {[%clk 0:01:32.4]} 26. Kf1 {[%clk 0:00:34.6]} 26...
e5 {[%clk 0:01:26.1]} 27. c5+ {[%clk 0:00:20]} 27... Kh8 {[%clk 0:01:25.2]} 28.
Qc3 {[%clk 0:00:19.2]} 28... e4 {[%clk 0:01:24.6]} 29. f3 {[%clk 0:00:19.3]}
29... Qd5 {[%clk 0:01:20.2]} 30. f4 {[%clk 0:00:18.9]} 30... Rc8 {[%clk
0:01:16]} 31. Rc1 {[%clk 0:00:17.4]} 31... Rc6 {[%clk 0:01:05.2]} 32. a3 {[%clk
0:00:12.7]} 32... b6 {[%clk 0:00:55.1]} 33. b4 {[%clk 0:00:12.2]} 33... bxc5
{[%clk 0:00:54.2]} 34. bxc5 {[%clk 0:00:12.6]} 34... Qa2 {[%clk 0:00:50.2]} 35.
Kg1 {[%clk 0:00:08]} 35... Qe2 {[%clk 0:00:48.2]} 36. Re1 {[%clk 0:00:07.5]}
36... Rxc5 {[%clk 0:00:38.1]} 37. Qb4 {[%clk 0:00:06.2]} 37... Qc2 {[%clk
0:00:33.1]} 38. Qb8+ {[%clk 0:00:04.8]} 38... Kh7 {[%clk 0:00:31.7]} 39. Qb4
{[%clk 0:00:03.2]} 39... d2 {[%clk 0:00:28.9]} 40. Rf1 {[%clk 0:00:03]} 40...
d1=Q {[%clk 0:00:27.2]} 41. Rxd1 {[%clk 0:00:03.5]} 41... Qxd1+ {[%clk 0:00:27]}
42. Kh2 {[%clk 0:00:04.2]} 42... Qd5 {[%clk 0:00:25.6]} 43. Qd4 {[%clk
0:00:03.6]} 43... Qxd4 {[%clk 0:00:25.5]} 44. exd4 {[%clk 0:00:03.9]} 44... Rd5
{[%clk 0:00:25.9]} 0-1